[Event "*** Titled Tuesday Blitz"]
[Site "Chess.com"]
[Date "2021.03.02"]
[Round "3"]
[White "CakeinSpace2002"]
[Black "MatyChess1"]
[Result "1-0"]
[WhiteElo "2413"]
[BlackElo "2580"]
[TimeControl "180+1"]
[EndTime "10:29:18 PST"]
[Termination "CakeinSpace2002 won by resignation"]

1. d4 {[%clk 0:03:00]} 1... d5 {[%clk 0:02:57.7]} 2. c4 {[%clk 0:02:53.2]} 2...
e6 {[%clk 0:02:58.1]} 3. Nc3 {[%clk 0:02:52.8]} 3... Bb4 {[%clk 0:02:58.6]} 4.
e3 {[%clk 0:02:49.7]} 4... Nf6 {[%clk 0:02:56.1]} 5. Nf3 {[%clk 0:02:49.7]} 5...
O-O {[%clk 0:02:53.9]} 6. Bd2 {[%clk 0:02:49.7]} 6... b6 {[%clk 0:02:51.3]} 7.
Bd3 {[%clk 0:02:48.7]} 7... dxc4 {[%clk 0:02:48.9]} 8. Bxc4 {[%clk 0:02:48.3]}
8... Bb7 {[%clk 0:02:49.5]} 9. O-O {[%clk 0:02:46.2]} 9... Nbd7 {[%clk
0:02:49.6]} 10. Qe2 {[%clk 0:02:41.2]} 10... a6 {[%clk 0:02:24.6]} 11. Rfd1
{[%clk 0:02:32.5]} 11... Qe7 {[%clk 0:02:11.7]} 12. a3 {[%clk 0:02:30.4]} 12...
Bd6 {[%clk 0:01:58.8]} 13. e4 {[%clk 0:02:24.8]} 13... e5 {[%clk 0:01:59.2]} 14.
d5 {[%clk 0:02:24.4]} 14... b5 {[%clk 0:01:53.1]} 15. Ba2 {[%clk 0:02:22.5]}
15... h6 {[%clk 0:01:50.1]} 16. Nh4 {[%clk 0:02:13.6]} 16... Nh7 {[%clk
0:01:26.9]} 17. Nf5 {[%clk 0:02:12.7]} 17... Qf6 {[%clk 0:01:26.6]} 18. Qg4
{[%clk 0:02:07.8]} 18... Kh8 {[%clk 0:01:18.6]} 19. h4 {[%clk 0:02:05.2]} 19...
Nc5 {[%clk 0:01:14.1]} 20. Be3 {[%clk 0:01:58.6]} 20... h5 {[%clk 0:01:03.1]}
21. Qf3 {[%clk 0:01:30]} 21... Nd7 {[%clk 0:00:52.8]} 22. a4 {[%clk 0:01:08.9]}
22... b4 {[%clk 0:00:51.9]} 23. Ne2 {[%clk 0:01:04.3]} 23... a5 {[%clk
0:00:42.4]} 24. Rac1 {[%clk 0:00:58.1]} 24... Ba6 {[%clk 0:00:38.9]} 25. Bc4
{[%clk 0:00:57.5]} 25... g6 {[%clk 0:00:22.9]} 26. Bxa6 {[%clk 0:00:49.1]} 26...
Rxa6 {[%clk 0:00:19.3]} 27. Nxd6 {[%clk 0:00:41.5]} 27... Qxf3 {[%clk 0:00:10]}
28. gxf3 {[%clk 0:00:42.4]} 28... cxd6 {[%clk 0:00:10.9]} 29. Rc6 {[%clk
0:00:40.4]} 29... Rfa8 {[%clk 0:00:10]} 30. Rdc1 {[%clk 0:00:38.8]} 30... Nhf8
{[%clk 0:00:10.3]} 31. b3 {[%clk 0:00:38.2]} 31... f5 {[%clk 0:00:09.1]} 32. Bg5
{[%clk 0:00:37.4]} 32... Kg8 {[%clk 0:00:08.8]} 33. Be7 {[%clk 0:00:35.6]} 33...
Nc5 {[%clk 0:00:07.7]} 34. Bxd6 {[%clk 0:00:30.8]} 34... Nxb3 {[%clk 0:00:07.5]}
35. Rxa6 {[%clk 0:00:26.1]} 35... Rxa6 {[%clk 0:00:08.4]} 36. Rc6 {[%clk
0:00:25.6]} 36... Rxc6 {[%clk 0:00:07.2]} 37. dxc6 {[%clk 0:00:26.5]} 37... Ne6
{[%clk 0:00:07.6]} 38. Bxe5 {[%clk 0:00:23.6]} 38... Nd2 {[%clk 0:00:06.6]} 39.
c7 {[%clk 0:00:20.3]} 39... Nxf3+ {[%clk 0:00:06.4]} 40. Kg2 {[%clk 0:00:17.5]}
40... Nxc7 {[%clk 0:00:05.8]} 41. Bxc7 {[%clk 0:00:18.4]} 41... fxe4 {[%clk
0:00:05.3]} 42. Bxa5 {[%clk 0:00:17.6]} 42... b3 {[%clk 0:00:05.8]} 43. Bc3
{[%clk 0:00:16.8]} 43... Nxh4+ {[%clk 0:00:03.9]} 44. Kh3 {[%clk 0:00:15.3]}
44... Nf3 {[%clk 0:00:01.2]} 45. a5 {[%clk 0:00:14.8]} 45... g5 {[%clk
0:00:01.7]} 46. a6 {[%clk 0:00:14.5]} 46... g4+ {[%clk 0:00:02.6]} 47. Kg3
{[%clk 0:00:14.3]} 47... Kf7 {[%clk 0:00:02.8]} 48. a7 {[%clk 0:00:14.3]} 48...
Kg6 {[%clk 0:00:03.7]} 49. a8=Q {[%clk 0:00:14.4]} 49... Kf5 {[%clk 0:00:04.6]}
50. Qd5+ {[%clk 0:00:14.6]} 50... Kg6 {[%clk 0:00:03.9]} 51. Qxe4+ {[%clk
0:00:14.9]} 1-0

[Event "*** Titled Tuesday Blitz"]
[Site "Chess.com"]
[Date "2021.03.02"]
[Round "3"]
[White "erdni1993"]
[Black "LubovMarkelova"]
[Result "1-0"]
[WhiteElo "2435"]
[BlackElo "2230"]
[TimeControl "180+1"]
[EndTime "10:29:20 PST"]
[Termination "erdni1993 won on time"]

1. e4 {[%clk 0:03:00.9]} 1... e6 {[%clk 0:02:51.4]} 2. d4 {[%clk 0:02:59.4]}
2... d5 {[%clk 0:02:52.3]} 3. Nd2 {[%clk 0:02:59.9]} 3... c5 {[%clk 0:02:51.8]}
4. Ngf3 {[%clk 0:02:58.3]} 4... cxd4 {[%clk 0:02:51.5]} 5. exd5 {[%clk
0:02:58.3]} 5... Qxd5 {[%clk 0:02:51.1]} 6. Bc4 {[%clk 0:02:57.8]} 6... Qd6
{[%clk 0:02:46.5]} 7. O-O {[%clk 0:02:57.5]} 7... Nf6 {[%clk 0:02:46.3]} 8. Re1
{[%clk 0:02:57.3]} 8... Nc6 {[%clk 0:02:44.6]} 9. Nb3 {[%clk 0:02:57.1]} 9...
Be7 {[%clk 0:02:40.1]} 10. Nbxd4 {[%clk 0:02:56.4]} 10... Nxd4 {[%clk 0:02:40]}
11. Qxd4 {[%clk 0:02:55.5]} 11... Qxd4 {[%clk 0:02:38.8]} 12. Nxd4 {[%clk
0:02:56.4]} 12... a6 {[%clk 0:02:34.3]} 13. c3 {[%clk 0:02:53.7]} 13... b5
{[%clk 0:02:33.6]} 14. Bb3 {[%clk 0:02:52]} 14... Bb7 {[%clk 0:02:33.8]} 15. Bf4
{[%clk 0:02:50.3]} 15... O-O {[%clk 0:02:32.7]} 16. Nf5 {[%clk 0:02:43.8]} 16...
Bc5 {[%clk 0:02:26.4]} 17. Nd6 {[%clk 0:02:39.1]} 17... Bc6 {[%clk 0:02:22.4]}
18. Rad1 {[%clk 0:02:25.1]} 18... Rad8 {[%clk 0:02:09.5]} 19. c4 {[%clk
0:02:01.4]} 19... b4 {[%clk 0:02:03.2]} 20. Bc2 {[%clk 0:01:56.1]} 20... Ng4
{[%clk 0:01:56.7]} 21. Bg3 {[%clk 0:01:45]} 21... e5 {[%clk 0:01:13]} 22. Nf5
{[%clk 0:01:36.6]} 22... g6 {[%clk 0:01:06.9]} 23. h3 {[%clk 0:01:25.2]} 23...
gxf5 {[%clk 0:00:51.1]} 24. hxg4 {[%clk 0:01:24.7]} 24... f4 {[%clk 0:00:48.1]}
25. Bh4 {[%clk 0:01:24.5]} 25... Rxd1 {[%clk 0:00:42]} 26. Rxd1 {[%clk
0:01:25.4]} 26... f6 {[%clk 0:00:41.9]} 27. Kf1 {[%clk 0:01:16.4]} 27... Kg7
{[%clk 0:00:40.3]} 28. f3 {[%clk 0:01:14.4]} 28... Bd4 {[%clk 0:00:37.6]} 29.
Bf2 {[%clk 0:01:11.5]} 29... Bxb2 {[%clk 0:00:27]} 30. Bc5 {[%clk 0:01:07.3]}
30... Rc8 {[%clk 0:00:24.6]} 31. Bf5 {[%clk 0:01:05.3]} 31... Rb8 {[%clk
0:00:14.1]} 32. Rd6 {[%clk 0:01:04.7]} 32... Be8 {[%clk 0:00:12.1]} 33. Rxa6
{[%clk 0:01:02.2]} 33... Bd4 {[%clk 0:00:12.2]} 34. Be7 {[%clk 0:00:55.3]} 34...
Rb7 {[%clk 0:00:08.9]} 35. Bxf6+ {[%clk 0:00:54.4]} 35... Kf7 {[%clk 0:00:09.2]}
36. g5 {[%clk 0:00:49.5]} 36... h6 {[%clk 0:00:08.3]} 37. Be6+ {[%clk
0:00:48.5]} 37... Kg6 {[%clk 0:00:07.8]} 38. Bd5 {[%clk 0:00:46.1]} 38... Rb6
{[%clk 0:00:07.6]} 39. Rxb6 {[%clk 0:00:45.5]} 39... Bxb6 {[%clk 0:00:07.8]} 40.
Bxe5 {[%clk 0:00:43.7]} 40... hxg5 {[%clk 0:00:08.1]} 41. Bd6 {[%clk 0:00:43.6]}
41... Ba5 {[%clk 0:00:07.3]} 42. c5 {[%clk 0:00:38.9]} 42... Bb5+ {[%clk
0:00:06.7]} 43. Kf2 {[%clk 0:00:39]} 43... Kf6 {[%clk 0:00:07.1]} 44. c6 {[%clk
0:00:36.8]} 44... Ba6 {[%clk 0:00:07.4]} 45. c7 {[%clk 0:00:35.5]} 45... Bc8
{[%clk 0:00:07.6]} 46. Ke2 {[%clk 0:00:30.3]} 46... Bb6 {[%clk 0:00:07.8]} 47.
Kd3 {[%clk 0:00:30]} 47... Kf5 {[%clk 0:00:06.9]} 48. Kc4 {[%clk 0:00:29.3]}
48... g4 {[%clk 0:00:07.5]} 49. Kb5 {[%clk 0:00:29.2]} 49... Bf2 {[%clk
0:00:07.1]} 50. Bxb4 {[%clk 0:00:24.8]} 50... gxf3 {[%clk 0:00:06.6]} 51. gxf3
{[%clk 0:00:25.7]} 51... Ke5 {[%clk 0:00:06.8]} 52. Kc6 {[%clk 0:00:22.9]} 52...
Be3 {[%clk 0:00:04.8]} 53. Bc3+ {[%clk 0:00:22.8]} 53... Kf5 {[%clk 0:00:03.8]}
54. Kd6 {[%clk 0:00:21.1]} 54... Bc1 {[%clk 0:00:01.1]} 55. Ke7 {[%clk
0:00:20.4]} 55... Ba3+ {[%clk 0:00:01.2]} 56. Kd8 {[%clk 0:00:20.7]} 56... Ba6
{[%clk 0:00:01.5]} 57. c8=Q+ {[%clk 0:00:20.3]} 57... Bxc8 {[%clk 0:00:02.4]}
58. Kxc8 {[%clk 0:00:21.1]} 1-0

[Event "*** Titled Tuesday Blitz"]
[Site "Chess.com"]
[Date "2021.03.02"]
[Round "3"]
[White "As0nchess"]
[Black "fearless_guy"]
[Result "0-1"]
[WhiteElo "2601"]
[BlackElo "2803"]
[TimeControl "180+1"]
[EndTime "10:29:26 PST"]
[Termination "fearless_guy won on time"]

1. e4 {[%clk 0:03:00.9]} 1... e6 {[%clk 0:02:58.5]} 2. d4 {[%clk 0:03:00]} 2...
d5 {[%clk 0:02:59.2]} 3. Nd2 {[%clk 0:03:00.4]} 3... h6 {[%clk 0:02:59.4]} 4.
Ngf3 {[%clk 0:02:59.6]} 4... Nf6 {[%clk 0:03:00]} 5. e5 {[%clk 0:02:58.2]} 5...
Nfd7 {[%clk 0:03:00.3]} 6. c3 {[%clk 0:02:58.2]} 6... c5 {[%clk 0:03:00.5]} 7.
Bd3 {[%clk 0:02:58.4]} 7... Nc6 {[%clk 0:03:01.2]} 8. O-O {[%clk 0:02:58.2]}
8... g5 {[%clk 0:02:57.9]} 9. dxc5 {[%clk 0:02:40.2]} 9... Bxc5 {[%clk
0:02:55.5]} 10. Nb3 {[%clk 0:02:37.5]} 10... Bb6 {[%clk 0:02:55.5]} 11. Re1
{[%clk 0:02:36.5]} 11... g4 {[%clk 0:02:53.4]} 12. Nfd4 {[%clk 0:02:36]} 12...
Ncxe5 {[%clk 0:02:53.4]} 13. Bc2 {[%clk 0:02:33.8]} 13... Qf6 {[%clk 0:02:51.3]}
14. a4 {[%clk 0:02:30.9]} 14... a6 {[%clk 0:02:51]} 15. a5 {[%clk 0:02:30]}
15... Bc7 {[%clk 0:02:50.8]} 16. Be3 {[%clk 0:02:21.4]} 16... h5 {[%clk
0:02:46.9]} 17. Rf1 {[%clk 0:02:21]} 17... h4 {[%clk 0:02:42.9]} 18. f4 {[%clk
0:02:21.1]} 18... Nc4 {[%clk 0:02:42.5]} 19. Qe2 {[%clk 0:02:18.9]} 19... g3
{[%clk 0:02:04.4]} 20. h3 {[%clk 0:02:17.9]} 20... b5 {[%clk 0:01:57]} 21. Rae1
{[%clk 0:02:15.6]} 21... Bb7 {[%clk 0:01:52.5]} 22. Bd3 {[%clk 0:02:06.6]} 22...
O-O-O {[%clk 0:01:48.2]} 23. Nd2 {[%clk 0:01:59.9]} 23... Nxe3 {[%clk
0:01:43.5]} 24. Qxe3 {[%clk 0:01:59.7]} 24... Bxa5 {[%clk 0:01:44.3]} 25. Ra1
{[%clk 0:01:53.4]} 25... Bb6 {[%clk 0:01:44.5]} 26. N2f3 {[%clk 0:01:51.6]}
26... Bc7 {[%clk 0:01:00.6]} 27. Qe2 {[%clk 0:01:39.2]} 27... Bxf4 {[%clk
0:00:57.2]} 28. Nxb5 {[%clk 0:01:28.7]} 28... axb5 {[%clk 0:00:55.8]} 29. Bxb5
{[%clk 0:01:29.6]} 29... e5 {[%clk 0:00:50.2]} 30. Ba6 {[%clk 0:01:25.3]} 30...
Qb6+ {[%clk 0:00:45.2]} 31. Kh1 {[%clk 0:01:24.8]} 31... Rh6 {[%clk 0:00:42.5]}
32. Bxb7+ {[%clk 0:01:21.5]} 32... Qxb7 {[%clk 0:00:37.4]} 33. Ra4 {[%clk
0:01:10.6]} 33... Rb6 {[%clk 0:00:33.9]} 34. b4 {[%clk 0:01:08.2]} 34... Kc7
{[%clk 0:00:29.6]} 35. Rfa1 {[%clk 0:01:07.7]} 35... Qc6 {[%clk 0:00:25]} 36.
Nxh4 {[%clk 0:00:55.6]} 36... Rdb8 {[%clk 0:00:22.6]} 37. Nf5 {[%clk 0:00:53.6]}
37... Qxc3 {[%clk 0:00:19.5]} 38. Ne7 {[%clk 0:00:50.7]} 38... Kd6 {[%clk
0:00:17.4]} 39. Nf5+ {[%clk 0:00:41.5]} 39... Kc7 {[%clk 0:00:16.4]} 40. R4a2
{[%clk 0:00:39.6]} 40... Rxb4 {[%clk 0:00:10.5]} 41. Ra7+ {[%clk 0:00:33.3]}
41... Kd8 {[%clk 0:00:06]} 42. Rd1 {[%clk 0:00:20.3]} 42... Rb1 {[%clk
0:00:05.6]} 43. Nd6 {[%clk 0:00:19.3]} 43... Qc1 {[%clk 0:00:04.2]} 44. Nxf7+
{[%clk 0:00:16.5]} 44... Ke7 {[%clk 0:00:03.7]} 45. Rxd7+ {[%clk 0:00:16.2]}
45... Kxd7 {[%clk 0:00:03.1]} 46. Qg4+ {[%clk 0:00:15.8]} 46... Kc7 {[%clk
0:00:03.2]} 0-1

[Event "*** Titled Tuesday Blitz"]
[Site "Chess.com"]
[Date "2021.03.02"]
[Round "3"]
[White "Rsnr"]
[Black "Oligan22"]
[Result "1-0"]
[WhiteElo "2781"]
[BlackElo "2529"]
[TimeControl "180+1"]
[EndTime "10:29:26 PST"]
[Termination "Rsnr won by resignation"]

1. d4 {[%clk 0:03:00.9]} 1... d5 {[%clk 0:02:59.9]} 2. c4 {[%clk 0:03:01.2]}
2... dxc4 {[%clk 0:02:59.9]} 3. e4 {[%clk 0:03:01.4]} 3... Nf6 {[%clk
0:02:59.4]} 4. e5 {[%clk 0:03:01.6]} 4... Nd5 {[%clk 0:02:59.7]} 5. Bxc4 {[%clk
0:03:02.2]} 5... Nb6 {[%clk 0:02:59.6]} 6. Bd3 {[%clk 0:03:02.7]} 6... Nc6
{[%clk 0:02:58.9]} 7. Be3 {[%clk 0:03:03.3]} 7... Be6 {[%clk 0:02:49.9]} 8. Nc3
{[%clk 0:03:02.6]} 8... Qd7 {[%clk 0:02:50]} 9. Nge2 {[%clk 0:03:01.2]} 9... Nb4
{[%clk 0:02:40.1]} 10. Be4 {[%clk 0:02:56.6]} 10... N4d5 {[%clk 0:02:38.8]} 11.
Qc2 {[%clk 0:02:49.5]} 11... f5 {[%clk 0:02:26.8]} 12. Bf3 {[%clk 0:02:46.3]}
12... h6 {[%clk 0:02:18.9]} 13. a3 {[%clk 0:02:43.6]} 13... O-O-O {[%clk
0:02:17.3]} 14. Rc1 {[%clk 0:02:39]} 14... g5 {[%clk 0:02:08.7]} 15. g3 {[%clk
0:02:34.9]} 15... Kb8 {[%clk 0:02:02.2]} 16. h4 {[%clk 0:02:21.1]} 16... Nxe3
{[%clk 0:01:44.3]} 17. fxe3 {[%clk 0:02:22]} 17... Bg7 {[%clk 0:01:34.5]} 18.
Kf2 {[%clk 0:02:13.6]} 18... c6 {[%clk 0:01:28.6]} 19. a4 {[%clk 0:01:49.3]}
19... Nd5 {[%clk 0:01:23.6]} 20. Qd2 {[%clk 0:01:45]} 20... Nb4 {[%clk
0:00:46.8]} 21. Nb1 {[%clk 0:01:18.9]} 21... a5 {[%clk 0:00:44.9]} 22. Qc3
{[%clk 0:00:59.6]} 22... Bd5 {[%clk 0:00:43.7]} 23. Nd2 {[%clk 0:00:57.3]} 23...
Bxf3 {[%clk 0:00:35]} 24. Nxf3 {[%clk 0:00:58.2]} 24... g4 {[%clk 0:00:35.5]}
25. Ne1 {[%clk 0:00:54.4]} 25... Na2 {[%clk 0:00:26.2]} 26. Qxa5 {[%clk
0:00:54.7]} 26... Nxc1 {[%clk 0:00:26.4]} 27. Nxc1 {[%clk 0:00:55.6]} 27... Qd5
{[%clk 0:00:25.9]} 28. Qxd5 {[%clk 0:00:40]} 28... cxd5 {[%clk 0:00:26.8]} 29.
Ncd3 {[%clk 0:00:27.5]} 29... e6 {[%clk 0:00:27.3]} 30. Ke2 {[%clk 0:00:27.8]}
30... Rhe8 {[%clk 0:00:27.4]} 31. Kd1 {[%clk 0:00:27.7]} 31... Bf8 {[%clk
0:00:27.9]} 32. Rh2 {[%clk 0:00:27.5]} 32... Rc8 {[%clk 0:00:28.2]} 33. Nf4
{[%clk 0:00:24.1]} 33... Rc6 {[%clk 0:00:28]} 34. Ned3 {[%clk 0:00:24.1]} 34...
Rec8 {[%clk 0:00:27.2]} 35. Rd2 {[%clk 0:00:15.8]} 35... b6 {[%clk 0:00:27.5]}
36. Ke2 {[%clk 0:00:15.9]} 36... Kb7 {[%clk 0:00:28]} 37. Kd1 {[%clk 0:00:11.1]}
37... Re8 {[%clk 0:00:28.2]} 38. b4 {[%clk 0:00:11]} 38... Rc4 {[%clk
0:00:28.3]} 39. Rb2 {[%clk 0:00:11.6]} 39... Rc3 {[%clk 0:00:27.5]} 40. Kd2
{[%clk 0:00:11.8]} 40... Rc4 {[%clk 0:00:27.8]} 41. a5 {[%clk 0:00:11.1]} 41...
Rc6 {[%clk 0:00:14.7]} 42. axb6 {[%clk 0:00:10.7]} 42... Kxb6 {[%clk 0:00:14.6]}
43. Nc5 {[%clk 0:00:10.8]} 43... Bxc5 {[%clk 0:00:11.1]} 44. bxc5+ {[%clk
0:00:11.7]} 44... Kc7 {[%clk 0:00:11.6]} 45. Ra2 {[%clk 0:00:10.8]} 45... Rb8
{[%clk 0:00:12.2]} 46. Nd3 {[%clk 0:00:10.5]} 46... Rb7 {[%clk 0:00:11.9]} 47.
Ra8 {[%clk 0:00:09.9]} 47... Rb8 {[%clk 0:00:11.7]} 48. Ra7+ {[%clk 0:00:08.3]}
48... Rb7 {[%clk 0:00:12.2]} 49. Ra2 {[%clk 0:00:08.1]} 49... Kd7 {[%clk
0:00:11.6]} 50. Kc3 {[%clk 0:00:08.3]} 50... Rc8 {[%clk 0:00:11.5]} 51. Nb4
{[%clk 0:00:08.3]} 51... Kc7 {[%clk 0:00:10.4]} 52. Ra6 {[%clk 0:00:05.2]} 52...
Rcb8 {[%clk 0:00:09]} 53. Rc6+ {[%clk 0:00:05.5]} 53... Kd7 {[%clk 0:00:09.1]}
54. Rd6+ {[%clk 0:00:06]} 54... Kc7 {[%clk 0:00:07.6]} 55. Na6+ {[%clk
0:00:05.6]} 55... Kc8 {[%clk 0:00:07.4]} 56. Nxb8 {[%clk 0:00:06.3]} 56... Rxb8
{[%clk 0:00:06]} 57. Rxe6 {[%clk 0:00:06.8]} 57... Ra8 {[%clk 0:00:06.9]} 58.
Re8+ {[%clk 0:00:07]} 1-0

[Event "*** Titled Tuesday Blitz"]
[Site "Chess.com"]
[Date "2021.03.02"]
[Round "3"]
[White "German_Bazeev"]
[Black "Lysiak_Poltorak"]
[Result "1/2-1/2"]
[WhiteElo "2727"]
[BlackElo "2461"]
[TimeControl "180+1"]
[EndTime "10:29:26 PST"]
[Termination "Game drawn by agreement"]

1. d4 {[%clk 0:03:00.9]} 1... Nf6 {[%clk 0:02:59.7]} 2. Nf3 {[%clk 0:03:01]}
2... e6 {[%clk 0:02:58.4]} 3. c4 {[%clk 0:03:01.6]} 3... Bb4+ {[%clk 0:02:58.7]}
4. Bd2 {[%clk 0:03:01.4]} 4... Qe7 {[%clk 0:02:58.6]} 5. g3 {[%clk 0:03:02]}
5... Bxd2+ {[%clk 0:02:58.1]} 6. Nbxd2 {[%clk 0:03:01.8]} 6... O-O {[%clk
0:02:57.1]} 7. Bg2 {[%clk 0:03:02.4]} 7... d6 {[%clk 0:02:57.7]} 8. Nf1 {[%clk
0:03:03]} 8... e5 {[%clk 0:02:50.9]} 9. Ne3 {[%clk 0:03:02.8]} 9... c6 {[%clk
0:02:49]} 10. d5 {[%clk 0:02:46.1]} 10... g6 {[%clk 0:02:41]} 11. O-O {[%clk
0:02:44.1]} 11... c5 {[%clk 0:02:36.5]} 12. Qc1 {[%clk 0:02:13.1]} 12... Nh5
{[%clk 0:02:30.5]} 13. b4 {[%clk 0:02:07.8]} 13... b6 {[%clk 0:02:25.8]} 14.
bxc5 {[%clk 0:02:02.2]} 14... bxc5 {[%clk 0:02:25]} 15. Nd2 {[%clk 0:01:57.6]}
15... f5 {[%clk 0:02:23.9]} 16. Qa3 {[%clk 0:01:55.5]} 16... f4 {[%clk
0:02:21.6]} 17. Nd1 {[%clk 0:01:49.5]} 17... Bf5 {[%clk 0:01:56.7]} 18. Nc3
{[%clk 0:01:47.9]} 18... Nd7 {[%clk 0:01:55.1]} 19. Nce4 {[%clk 0:01:42]} 19...
Ndf6 {[%clk 0:01:53.2]} 20. Qa6 {[%clk 0:01:37.7]} 20... Nxe4 {[%clk 0:01:50.4]}
21. Nxe4 {[%clk 0:01:38.6]} 21... Bxe4 {[%clk 0:01:50.3]} 22. Bxe4 {[%clk
0:01:39.5]} 22... Rad8 {[%clk 0:01:40.4]} 23. Rab1 {[%clk 0:01:36.3]} 23... Rf7
{[%clk 0:01:34.9]} 24. Qa3 {[%clk 0:01:20.3]} 24... Rdf8 {[%clk 0:01:32.6]} 25.
Qd3 {[%clk 0:01:16.1]} 25... Qg5 {[%clk 0:01:26.6]} 26. Bg2 {[%clk 0:01:13]}
26... Nf6 {[%clk 0:01:18.9]} 27. Qd2 {[%clk 0:01:10]} 27... Qh6 {[%clk
0:01:07.4]} 28. f3 {[%clk 0:00:52.4]} 28... g5 {[%clk 0:01:03.6]} 29. g4 {[%clk
0:00:44.7]} 29... Qg6 {[%clk 0:01:01.9]} 30. e4 {[%clk 0:00:40.4]} 30... fxe3
{[%clk 0:00:59.3]} 31. Qxe3 {[%clk 0:00:40.2]} 31... h5 {[%clk 0:00:57]} 32. h3
{[%clk 0:00:37.7]} 32... Kg7 {[%clk 0:00:56.7]} 33. Rb3 {[%clk 0:00:29.2]} 33...
Nd7 {[%clk 0:00:52.5]} 34. Rb2 {[%clk 0:00:27.7]} 34... Nb6 {[%clk 0:00:51]} 35.
Qe2 {[%clk 0:00:24.2]} 35... Rf4 {[%clk 0:00:49.8]} 36. Rc2 {[%clk 0:00:23.4]}
36... hxg4 {[%clk 0:00:43.2]} 37. hxg4 {[%clk 0:00:21.6]} 37... Rh8 {[%clk
0:00:43.5]} 38. Re1 {[%clk 0:00:20.1]} 38... Qh7 {[%clk 0:00:42.8]} 39. Qf2
{[%clk 0:00:18.3]} 39... Rhf8 {[%clk 0:00:38.5]} 40. Qe2 {[%clk 0:00:15.8]}
40... Qh4 {[%clk 0:00:35.3]} 41. a4 {[%clk 0:00:14.8]} 41... Nxa4 {[%clk
0:00:33.3]} 42. Ra2 {[%clk 0:00:14.8]} 42... Nb6 {[%clk 0:00:33.1]} 43. Rxa7+
{[%clk 0:00:14.9]} 43... R4f7 {[%clk 0:00:33.6]} 44. Rxf7+ {[%clk 0:00:13.6]}
44... Rxf7 {[%clk 0:00:34.5]} 45. Rb1 {[%clk 0:00:14.1]} 45... Nd7 {[%clk
0:00:33.5]} 46. Rb7 {[%clk 0:00:13.5]} 46... Qh7 {[%clk 0:00:32.8]} 47. Qd2
{[%clk 0:00:09.6]} 47... Qg6 {[%clk 0:00:32.5]} 48. Bf1 {[%clk 0:00:09.4]} 48...
e4 {[%clk 0:00:27.4]} 49. fxe4 {[%clk 0:00:06.6]} 49... Ne5 {[%clk 0:00:27.8]}
50. Rxf7+ {[%clk 0:00:07.5]} 50... Nxf7 {[%clk 0:00:28.4]} 51. Be2 {[%clk
0:00:05.8]} 51... Ne5 {[%clk 0:00:27.8]} 52. Qe3 {[%clk 0:00:06.4]} 52... Qf6
{[%clk 0:00:27.7]} 53. Qg3 {[%clk 0:00:05.9]} 53... Qf7 {[%clk 0:00:27.3]} 54.
Qf2 {[%clk 0:00:06.2]} 54... Qxf2+ {[%clk 0:00:26.1]} 55. Kxf2 {[%clk
0:00:07.1]} 55... Kf6 {[%clk 0:00:26.7]} 56. Ke3 {[%clk 0:00:08]} 56... Nd7
{[%clk 0:00:27]} 57. Kd2 {[%clk 0:00:08.5]} 57... Ne5 {[%clk 0:00:27.7]} 58. Kc3
{[%clk 0:00:09.4]} 58... Ke7 {[%clk 0:00:27.5]} 59. Kb3 {[%clk 0:00:10]} 59...
Kd7 {[%clk 0:00:28.1]} 60. Ka4 {[%clk 0:00:10.7]} 60... Kc7 {[%clk 0:00:28.6]}
61. Ka5 {[%clk 0:00:11.4]} 61... Nf7 {[%clk 0:00:28.7]} 62. Kb5 {[%clk
0:00:11.7]} 62... Ne5 {[%clk 0:00:29.1]} 63. Ka5 {[%clk 0:00:11.9]} 63... Nf7
{[%clk 0:00:29]} 64. Kb5 {[%clk 0:00:11.1]} 1/2-1/2